bitfinex/quotes_SOLUSD_20251031
["timestamp","ask_amount","ask_price","bid_price","bid_amount"]
[1761886440164,1.98658641,186.67,186.63,73.98016757]
[1761886440478,0.65,186.71,186.66,1.98658641]
[1761886440991,0.65,186.71,186.63,14.26675398]
[1761886440992,1.98658641,186.69,186.63,14.26675398]
[1761886441165,0.65,186.71,186.63,12.28016757]
[1761886441166,1.98658641,186.67,186.63,12.28016757]
[1761886441577,0.65,186.67,186.63,12.98016757]
[1761886442179,0.65,186.67,186.63,8.90866763]
[1761886442386,0.65,186.67,186.63,12.2801391]
[1761886442574,0.65,186.67,186.63,6.92208122]
[1761886442890,20.592,186.74,186.66,1.98658641]
[1761886443092,0.65,186.7,186.66,1.98658641]
[1761886443976,0.65,186.7,186.65,2.68658641]
[1761886444588,0.65,186.7,186.65,8.04395423]
[1761886445166,2.63658641,186.7,186.65,6.05736782]
[1761886445484,5.35440752,186.77,186.69,1.98658641]
[1761886445788,1.98658641,186.75,186.67,0.28432314]
[1761886445966,1.98658641,186.75,186.69,1.98658641]
[1761886446167,0.65,186.74,186.69,1.98658641]
[1761886446667,2.63658641,186.74,186.69,5.35647329]
[1761886447374,0.65,186.73,186.69,5.35647329]
[1761886449300,0.65,186.73,186.69,10.71121436]
[1761886451305,0.65,186.73,186.69,72.41121436]
[1761886451471,0.65,186.73,186.69,74.39780077]
[1761886452573,0.65,186.75,186.7,2.68658641]
[1761886452873,5.35419862,186.77,186.7,2.68658641]
[1761886452874,0.65,186.74,186.7,7.34135889]
[1761886453093,0.65,186.74,186.7,5.35477248]
[1761886454479,0.65,186.74,186.7,10.71075898]
[1761886454679,0.65,186.74,186.7,5.35477248]
[1761886454997,0.65,186.74,186.65,0.7]
[1761886454998,6.00507025,186.74,186.65,0.7]
[1761886455172,6.00507025,186.74,186.63,8.90866763]
[1761886455173,19.39266797,186.74,186.63,8.90866763]
[1761886455380,19.39266797,186.74,186.66,0.7]
[1761886455381,1.98658641,186.7,186.66,0.7]
[1761886455880,0.56,186.73,186.66,0.7]
[1761886456085,1.98658641,186.7,186.66,0.7]
[1761886457302,1.98658641,186.73,186.67,9.78882769]
[1761886457479,1.98658641,186.73,186.68,1.98658641]
[1761886457677,1.98658641,186.73,186.69,0.68]
[1761886457907,1.98658641,186.74,186.69,0.68]
[1761886459004,1.98658641,186.73,186.69,0.68]
[1761886460383,1.98658641,186.73,186.69,6.03633785]
[1761886461106,1.98658641,186.73,186.7,0.68]
[1761886461400,3.10360081,186.73,186.7,0.68]
[1761886462204,3.66360081,186.72,186.67,9.78882769]
[1761886462385,3.66360081,186.72,186.67,10.46882769]
[1761886462700,3.10360081,186.71,186.68,0.68]
[1761886462899,3.10360081,186.71,186.68,62.38]
[1761886463302,3.10360081,186.71,186.68,61.7]
[1761886463487,3.10360081,186.72,186.69,0.68]
[1761886467509,3.10360081,186.7,186.68,61.7]
[1761886467700,3.10360081,186.69,186.67,0.68]
[1761886468087,3.10360081,186.7,186.67,0.68]
[1761886470311,3.10360081,186.71,186.67,6.03703869]
[1761886470719,3.10360081,186.71,186.66,5.35733419]
[1761886470891,3.10360081,186.71,186.68,0.69]
[1761886472717,5.35520845,186.74,186.68,6.04670306]
[1761886472898,8.45880926,186.74,186.68,67.74670306]
[1761886473210,8.45880926,186.74,186.69,0.69]
[1761886473801,8.45880926,186.74,186.69,6.04643632]
[1761886474013,8.45880926,186.74,186.7,0.69]
[1761886474215,3.66360081,186.73,186.69,0.69]
[1761886474992,3.10360081,186.72,186.68,67.05672015]
[1761886475216,3.66360081,186.72,186.68,62.39]
[1761886475603,3.10360081,186.72,186.69,0.69]
[1761886476427,3.10360081,186.72,186.68,67.05675681]
[1761886476598,3.10360081,186.72,186.69,0.69]
[1761886476921,3.10360081,186.72,186.68,67.05675681]
[1761886477222,3.10360081,186.72,186.69,0.69]
[1761886477401,3.10360081,186.72,186.68,67.05675681]
[1761886477600,3.10360081,186.72,186.69,0.69]
[1761886478730,3.10360081,186.72,186.68,67.05675681]
[1761886478898,3.10360081,186.71,186.68,67.74675681]
[1761886479824,3.10360081,186.71,186.68,62.39]
[1761886480323,3.10360081,186.71,186.69,0.69]
[1761886480933,3.10360081,186.7,186.68,61.7]
[1761886481094,3.10360081,186.7,186.67,0.69]
[1761886481499,3.10360081,186.7,186.66,61.7]
[1761886481701,3.10360081,186.7,186.67,0.69]
[1761886482207,3.10360081,186.7,186.66,61.7]
[1761886482435,3.10360081,186.69,186.66,62.39]
[1761886483140,3.10360081,186.67,186.66,61.7]
[1761886484201,3.10360081,186.69,186.66,62.39]
[1761886485829,3.10360081,186.68,186.66,61.7]
[1761886486325,3.10360081,186.68,186.64,62.39]
[1761886486502,3.10360081,186.68,186.65,0.69]
[1761886487132,8.46039983,186.68,186.65,0.69]
[1761886487329,8.46039983,186.68,186.64,61.7]
[1761886487330,3.10360081,186.67,186.64,61.7]
[1761886487512,3.10360081,186.67,186.64,62.39]
[1761886489836,5.91733419,186.66,186.63,6.92208122]
[1761886490021,3.10360081,186.65,186.63,6.92208122]
[1761886490534,3.10360081,186.64,186.63,6.92208122]
[1761886493538,8.46150908,186.64,186.63,6.92208122]
[1761886494523,9.02150908,186.64,186.63,6.92208122]
[1761886494718,8.46150908,186.64,186.63,6.92208122]
[1761886494918,9.02150908,186.64,186.63,6.92208122]
[1761886495131,8.46150908,186.64,186.63,6.92208122]
[1761886495939,0.56,186.66,186.63,6.92208122]
[1761886496124,0.56,186.7,186.64,0.69]
[1761886496435,3.10360081,186.66,186.64,0.69]
[1761886497227,3.10360081,186.67,186.64,0.69]
[1761886497442,8.46077682,186.67,186.64,0.69]
[1761886498139,3.10360081,186.67,186.64,0.69]
[1761886499128,5.35733419,186.66,186.64,0.69]
[1761886499325,8.460935,186.66,186.64,0.69]
[1761886499530,3.10360081,186.65,186.63,6.92208122]
[1761886499730,3.10360081,186.65,186.63,7.60208122]
[1761886500044,5.35733419,186.66,186.63,7.60208122]
[1761886500249,8.460935,186.66,186.63,6.92208122]
[1761886500544,3.66360081,186.65,186.63,6.92208122]
[1761886501448,8.46138502,186.65,186.63,6.92208122]
[1761886501941,3.10360081,186.64,186.63,6.92208122]
[1761886502444,8.46138502,186.65,186.63,6.92208122]
[1761886502832,3.10360081,186.64,186.63,6.92208122]
[1761886503048,5.3572667,186.67,186.64,0.68]
[1761886503631,5.35681494,186.68,186.64,0.68]
[1761886504440,8.46041575,186.68,186.64,0.68]
[1761886504741,21.85193977,186.69,186.64,0.68]
[1761886505050,3.66360081,186.68,186.64,0.68]
[1761886506257,5.35704719,186.67,186.64,0.68]
[1761886507548,5.35678765,186.68,186.64,0.68]
[1761886509242,25.94841843,186.7,186.65,3.10360081]
[1761886509430,25.94841843,186.7,186.64,6.0378238]
[1761886509431,5.35641843,186.7,186.66,3.10360081]
[1761886509834,5.35641843,186.7,186.67,0.68]
[1761886512567,9.02001924,186.7,186.65,0.68]
[1761886512748,9.02001924,186.7,186.66,0.68]
[1761886514762,8.46001924,186.7,186.66,0.68]
[1761886515063,5.35641843,186.7,186.66,0.68]
[1761886516756,8.45947063,186.72,186.67,3.10360081]
[1761886516947,4.00345647,186.71,186.67,3.10360081]
[1761886517273,4.00345647,186.71,186.68,0.68]
[1761886518255,4.00345647,186.7,186.68,0.68]
[1761886519068,5.35567383,186.72,186.68,3.78360081]
[1761886519448,5.35567383,186.72,186.69,0.68]
[1761886530982,1.98640972,186.73,186.69,0.68]
[1761886531168,4.01052976,186.72,186.69,6.03625553]
[1761886531483,1.98640972,186.76,186.7,1.98640972]
[1761886531664,4.01012182,186.75,186.7,2.69640972]
[1761886531866,4.01012182,186.74,186.71,0.71]
[1761886532181,1.98640972,186.76,186.71,0.71]
[1761886532384,4.00940053,186.75,186.71,0.71]
[1761886532685,4.00940053,186.74,186.71,0.71]
[1761886533258,5.35479716,186.75,186.71,0.71]
[1761886533758,5.35479716,186.75,186.71,2.69640972]
[1761886533953,5.35479716,186.75,186.72,0.71]
[1761886534379,7.34058865,186.77,186.72,0.71]
[1761886534571,4.00812705,186.76,186.72,0.71]
[1761886534770,4.00812705,186.75,186.72,0.71]
[1761886534988,7.90058865,186.77,186.72,0.71]
[1761886535287,4.00812705,186.76,186.72,0.71]
[1761886535481,4.00812705,186.75,186.72,0.71]
[1761886535660,7.90058865,186.77,186.72,0.71]
[1761886535860,4.00767739,186.76,186.72,0.71]
[1761886536270,5.35475234,186.75,186.72,0.71]
[1761886536875,20.592,186.79,186.72,6.06557614]
[1761886537081,4.00668643,186.78,186.73,9.78882769]
[1761886537270,0.1,186.84,186.77,1.98640972]
[1761886537469,4.1043649,186.84,186.82,1.98640972]
[1761886537679,0.1,186.84,186.83,0.71]
[1761886537875,0.1,186.84,186.8,2.69640972]
[1761886538069,0.1,186.84,186.8,0.71]
[1761886538270,0.1,186.84,186.82,1.98640972]
[1761886538690,0.1,186.84,186.83,0.71]
[1761886539274,0.1,186.84,186.81,2.69640972]
[1761886539581,5.45229268,186.84,186.8,0.71]
[1761886539892,1.98640972,186.82,186.77,1.98640972]
[1761886540063,1.98640972,186.82,186.79,0.71]
[1761886540388,7.33925207,186.82,186.79,0.71]
[1761886540563,5.35284235,186.82,186.79,0.71]
[1761886541187,5.35248218,186.83,186.79,2.69640972]
[1761886541685,0.1,186.84,186.8,0.71]
[1761886541880,2.08640972,186.84,186.8,0.71]
[1761886542194,7.43871653,186.84,186.8,0.71]
[1761886542567,1.98640972,186.83,186.8,0.71]
[1761886543386,7.43871653,186.84,186.8,0.71]
[1761886543584,1.98640972,186.83,186.8,0.71]
[1761886544474,5.35274595,186.82,186.8,0.71]
[1761886545492,5.35249561,186.83,186.8,0.71]
[1761886549493,5.45219079,186.84,186.8,0.71]
[1761886549794,7.43860051,186.84,186.8,0.71]
[1761886553406,7.99860051,186.84,186.8,0.71]
[1761886554795,5.35274595,186.82,186.8,0.71]
[1761886554993,5.35274595,186.82,186.78,63.68640972]
[1761886554994,7.33915567,186.82,186.78,62.41]
[1761886555196,7.33915567,186.82,186.79,0.71]
[1761886555975,5.35274595,186.82,186.79,0.71]
[1761886556399,1.98640972,186.83,186.79,0.71]
[1761886556600,2.08640972,186.84,186.79,0.71]
[1761886557400,5.35256912,186.83,186.79,0.71]
[1761886558308,7.33897884,186.83,186.79,0.71]
[1761886559286,1.98640972,186.8,186.77,0.69]
[1761886559490,1.98640972,186.81,186.77,0.69]
[1761886560206,7.33945137,186.81,186.77,0.69]
[1761886560407,5.35304165,186.81,186.77,0.69]
[1761886561678,0.1,186.84,186.81,0.14216157]
[1761886561877,0.1,186.84,186.8,30.38082769]
[1761886561878,0.1,186.84,186.82,0.69]
[1761886562509,0.1,186.84,186.82,2.83551988]
[1761886562894,0.1,186.84,186.83,0.69]
[1761886567494,5.45228565,186.84,186.81,0.69]
[1761886567792,5.45228565,186.84,186.79,0.69]
[1761886567983,5.45228565,186.84,186.8,0.69]
[1761886568601,0.1,186.84,186.8,0.69]
[1761886568902,0.1,186.84,186.8,2.67640972]
[1761886569098,5.45222749,186.84,186.81,0.69]
[1761886569410,6.01222749,186.84,186.8,0.69]
[1761886569631,5.45222749,186.84,186.81,0.69]
[1761886569930,5.45222749,186.84,186.79,0.69]
[1761886570409,7.43863721,186.84,186.79,0.69]
[1761886571017,1.98640972,186.83,186.77,63.68640972]
[1761886571309,5.35274595,186.82,186.78,0.69]
[1761886573198,7.33915567,186.82,186.78,0.69]
[1761886574487,1.98640972,186.79,186.75,0.69]
[1761886574693,1.98640972,186.77,186.73,0.69]
[1761886574896,1.98640972,186.76,186.73,0.69]
[1761886575418,7.34115897,186.76,186.73,0.69]
[1761886575597,5.35400671,186.78,186.73,0.69]
[1761886575805,7.34041643,186.78,186.73,0.69]
[1761886576199,6.57871525,186.86,186.77,1.98640972]
[1761886576200,21.252,186.84,186.77,1.98640972]
[1761886576399,9.35445347,186.83,186.79,1.98640972]
[1761886576608,4.00199402,186.82,186.79,1.98640972]
[1761886576797,4.00199402,186.82,186.8,0.66]
[1761886577410,5.35303249,186.81,186.78,1.98640972]
[1761886577693,5.35303249,186.81,186.79,0.66]
[1761886578096,5.35303249,186.81,186.78,1.98640972]
[1761886578301,5.35303249,186.81,186.78,2.64640972]
[1761886578509,0.1,186.84,186.8,1.98640972]
[1761886578706,4.00423507,186.83,186.81,1.98640972]
[1761886578905,0.1,186.84,186.82,1.98640972]
[1761886579292,0.1,186.84,186.82,2.64640972]
[1761886579497,0.1,186.84,186.82,0.66]
[1761886580524,5.45218069,186.84,186.8,1.98640972]
[1761886580913,5.45218069,186.84,186.81,0.66]
[1761886582017,0.1,186.84,186.81,0.66]
[1761886582322,9.46088914,186.84,186.81,3.75960034]
[1761886582519,5.45218186,186.84,186.81,0.66]
[1761886583822,7.66834169,186.83,186.78,61.7]
[1761886584028,4.00906578,186.82,186.79,0.66]
[1761886584355,0.1,186.84,186.81,3.09960034]
[1761886584501,4.00895533,186.83,186.81,3.09960034]
[1761886584701,4.00895533,186.83,186.82,0.66]
[1761886584902,0.1,186.84,186.82,0.66]
[1761886585517,4.10887187,186.84,186.82,0.66]
[1761886585738,0.1,186.84,186.82,0.66]
[1761886585916,0.1,186.84,186.83,3.09960034]
[1761886586328,0.1,186.84,186.83,0.66]
[1761886588540,0.1,186.84,186.83,9.11205979]
[1761886588925,0.1,186.84,186.83,3.75960034]
[1761886589533,0.1,186.84,186.83,9.11205979]
[1761886592040,0.1,186.84,186.83,0.66]
[1761886594246,0.1,186.84,186.83,3.75960034]
[1761886594833,0.1,186.84,186.83,65.45960034]
[1761886595523,0.1,186.84,186.83,70.81205979]
[1761886596743,0.1,186.84,186.83,80.60088748]
[1761886596935,0.1,186.84,186.83,80.88521062]
[1761886599756,0.1,186.84,186.83,83.03015525]
[1761886600249,0.1,186.84,186.83,80.88521062]
[1761886601355,0.1,186.84,186.83,83.03015525]
[1761886601769,0.1,186.84,186.83,83.56540119]
[1761886605356,0.1,186.84,186.83,101.47721062]
[1761886605740,0.1,186.84,186.83,101.19288748]
[1761886605930,0.1,186.84,186.83,101.47721062]
[1761886606745,0.1,186.84,186.83,98.37761028]
[1761886606942,0.1,186.84,186.83,101.47721062]
[1761886609839,0.1,186.84,186.83,82.952]
[1761886610338,0.1,186.84,186.83,86.05160034]
[1761886610656,0.1,186.84,186.83,85.39160034]
[1761886610859,0.1,186.84,186.83,82.292]
[1761886611363,0.1,186.84,186.83,61.7]
[1761886612457,0.1,186.84,186.81,70.85257205]
[1761886612767,0.66,186.84,186.81,61.7]
[1761886613147,0.1,186.84,186.82,3.79960034]
[1761886613464,0.1,186.84,186.83,3.09960034]
[1761886613660,0.1,186.84,186.83,3.79960034]
[1761886614037,0.1,186.84,186.83,0.7]
[1761886614238,0.1,186.84,186.82,3.09960034]
[1761886614541,0.1,186.84,186.82,3.79960034]
[1761886615141,0.1,186.84,186.82,8.45220031]
[1761886615340,0.1,186.84,186.83,0.7]
[1761886616196,0.1,186.84,186.83,18.94088748]
[1761886616481,0.1,186.85,186.83,18.94088748]
[1761886616482,0.1,186.85,186.84,0.28432314]
[1761886616654,0.1,186.85,186.84,27.77552382]
[1761886616859,0.1,186.85,186.84,24.67592348]
[1761886617177,0.1,186.85,186.84,34.46475117]
[1761886617478,0.1,186.85,186.84,34.18042803]
[1761886617691,0.1,186.86,186.84,37.56435151]
[1761886617857,0.1,186.9,186.88,33.76475117]
[1761886618190,0.1,186.9,186.88,40.35088129]
[1761886618553,0.1,186.9,186.88,37.25128095]
[1761886618765,0.1,186.9,186.88,40.35088129]
[1761886620949,0.1,186.96,186.92,30.38082769]
[1761886621153,0.68,187.05,186.99,9.78882769]
[1761886621358,0.68,187.05,187.01,3.09960034]
[1761886621688,0.78,187.03,187.0,3.09960034]
[1761886622458,0.78,187.03,187.0,8.44712006]
[1761886623971,0.78,187.03,187.0,3.09960034]
[1761886624680,0.78,187.03,186.99,3.09960034]
[1761886625117,0.78,187.03,186.98,23.69160034]
[1761886625118,6.12676525,187.03,186.98,23.69160034]
[1761886625405,0.68,187.02,186.99,3.09960034]
[1761886626396,0.1,187.03,187.0,3.09960034]
[1761886626586,0.1,187.03,187.02,3.09960034]
[1761886628201,0.78,187.03,187.01,3.09960034]
[1761886628407,0.1,187.03,187.01,3.09960034]
[1761886629008,0.1,187.03,187.02,3.09960034]
[1761886630103,0.1,187.03,187.0,67.72756331]
[1761886630290,0.1,187.03,187.0,70.14716365]
[1761886630491,0.1,187.03,187.01,3.09960034]
[1761886632083,0.1,187.03,187.01,8.44682642]
[1761886632804,0.78,187.03,187.0,61.7]
[1761886633121,0.1,187.03,187.01,3.77960034]
[1761886633310,0.1,187.03,187.01,3.09960034]
[1761886634608,0.1,187.03,187.01,8.44685119]
[1761886634781,0.1,187.03,187.02,3.77960034]
[1761886636122,0.1,187.03,187.02,9.12662204]
[1761886637006,0.1,187.03,187.02,70.82662204]
[1761886639287,0.1,187.03,187.02,61.7]
[1761886639814,0.1,187.03,187.02,80.59544973]
[1761886641690,0.1,187.03,187.02,104.57137321]
[1761886642108,0.1,187.03,187.02,101.47177287]
[1761886643507,0.1,187.03,187.02,100.35051994]
[1761886645800,0.1,187.03,187.02,108.26390958]
[1761886645997,0.1,187.03,187.02,98.37217253]
[1761886646199,0.1,187.03,187.02,100.35051994]
[1761886646698,0.1,187.03,187.02,100.0661968]
[1761886647512,0.1,187.03,187.02,98.08784939]
[1761886647818,0.1,187.03,187.02,100.0661968]
[1761886648808,0.1,187.03,187.02,100.1261968]
[1761886656012,0.1,187.03,187.02,99.4061968]
[1761886656422,0.1,187.03,187.02,100.1261968]
[1761886658321,0.78,187.03,187.02,61.7]
[1761886658912,0.1,187.03,187.02,61.7]
[1761886659446,0.78,187.03,187.02,61.7]
[1761886659732,0.1,187.03,187.02,67.0470217]
[1761886660199,0.1,187.03,187.02,61.7]
[1761886660400,0.78,187.03,187.02,61.7]
[1761886660625,0.1,187.03,187.02,61.7]
[1761886661130,0.78,187.03,187.02,61.7]
[1761886661431,0.78,187.03,187.01,6.92208122]
[1761886662334,0.78,187.03,187.01,14.24772501]
[1761886664634,0.1,187.03,187.01,14.24772501]
[1761886666421,0.1,187.03,187.01,75.94772501]
[1761886668635,0.1,187.03,187.01,76.66772501]
[1761886669135,0.1,187.03,187.02,1.97834741]
[1761886669342,0.78,187.03,187.02,1.97834741]
[1761886669513,0.78,187.03,187.01,73.9693776]
[1761886669514,0.78,187.03,187.01,75.94772501]
[1761886670116,0.1,187.03,187.01,75.94772501]
[1761886671417,0.1,187.03,187.01,70.60042863]
[1761886671618,0.1,187.03,187.01,75.94771806]
[1761886672936,0.78,187.03,187.01,68.62208122]
[1761886673244,0.78,187.03,187.01,70.60042863]
[1761886674023,0.78,187.03,187.01,6.92208122]
[1761886675433,0.78,187.03,187.01,14.24764492]
[1761886675434,0.1,187.03,187.01,14.24764492]
[1761886675823,0.1,187.03,187.01,12.26929751]
[1761886676030,0.78,187.03,187.01,12.26929751]
[1761886678932,0.1,187.03,187.01,12.26929751]
[1761886679742,0.1,187.03,187.01,12.95929751]
[1761886681331,0.1,187.03,187.01,12.26929751]
[1761886681954,0.1,187.03,187.01,14.24764492]
[1761886682154,0.1,187.03,187.02,0.69]
[1761886682928,0.1,187.03,187.01,14.24764492]
[1761886683223,0.1,187.03,187.01,14.93764492]
[1761886683651,0.1,187.03,187.02,0.69]
[1761886683949,0.1,187.03,187.01,12.95929751]
[1761886684249,0.1,187.03,187.02,0.69]
[1761886684557,0.1,187.03,187.01,12.95929751]
[1761886685735,0.72,187.02,187.01,6.92208122]
[1761886688040,0.1,187.03,187.02,9.78882769]
[1761886688244,0.1,187.03,187.02,12.4571751]
[1761886688748,0.1,187.03,187.02,12.74149824]
[1761886688922,0.1,187.03,187.02,35.84654782]
[1761886689126,0.1,187.03,187.02,97.54654782]
[1761886690142,0.1,187.03,187.02,102.89356952]
[1761886691241,0.1,187.03,187.02,100.91522211]
[1761886692763,0.1,187.03,187.02,38.93089897]
[1761886692961,0.1,187.03,187.02,15.13584939]
[1761886693158,0.1,187.03,187.02,7.32536911]
[1761886695955,0.1,187.03,187.01,68.62208122]
[1761886695956,0.82,187.03,187.01,68.62208122]
[1761886696760,0.1,187.03,187.01,68.62208122]
[1761886696966,0.1,187.03,187.01,6.92208122]
[1761886697137,0.66,187.02,187.01,6.92208122]
[1761886698767,2.63834741,187.02,187.01,6.92208122]
[1761886699344,0.66,187.02,187.01,6.92208122]
[1761886699560,7.98536911,187.02,187.01,6.92208122]
[1761886701846,6.0070217,187.02,187.01,6.92208122]
[1761886702050,7.98536911,187.02,187.01,6.92208122]
[1761886703465,9.10188822,187.02,187.01,6.92208122]
[1761886709149,6.0070217,187.02,187.01,6.92208122]
[1761886709350,9.10188822,187.02,187.01,6.92208122]
[1761886712788,5.3470217,187.02,187.01,6.92208122]
[1761886712953,3.81486652,187.02,187.01,6.92208122]
[1761886714882,9.16188822,187.02,187.01,6.92208122]
[1761886721465,5.44677323,187.03,187.01,6.92208122]
[1761886721669,3.09486652,187.02,187.01,6.92208122]
[1761886722386,8.44188822,187.02,187.01,6.92208122]
[1761886722881,3.09486652,187.02,187.01,6.92208122]
[1761886723284,9.26161779,187.03,187.01,6.92208122]
[1761886725263,0.1,187.03,187.01,6.92208122]
[1761886725562,0.1,187.03,187.02,0.71]
[1761886726681,0.1,187.03,187.01,7.63208122]
[1761886726866,0.1,187.03,187.01,6.92208122]
[1761886727069,5.44673581,187.03,187.02,0.71]
[1761886728368,5.44673581,187.03,187.01,7.63208122]
[1761886729166,0.1,187.03,187.01,7.63208122]
[1761886729370,0.1,187.03,187.01,6.92208122]
[1761886729575,0.1,187.03,187.01,7.63208122]
[1761886729782,0.1,187.03,187.02,0.71]
[1761886730995,5.44673581,187.03,187.02,0.71]
[1761886735271,5.44673581,187.03,187.01,7.63208122]
[1761886735672,5.44673581,187.03,187.01,6.92208122]
[1761886735887,5.44673581,187.03,187.01,7.63208122]
[1761886736084,5.44673581,187.03,187.02,0.71]
[1761886736396,9.26160233,187.03,187.01,6.92208122]
[1761886737493,8.54160233,187.03,187.01,6.92208122]
[1761886737697,9.26160233,187.03,187.01,6.92208122]
[1761886739519,8.54160233,187.03,187.01,6.92208122]
[1761886739703,3.09486652,187.02,187.01,6.92208122]
[1761886739910,3.77486652,187.02,187.01,6.92208122]
[1761886740207,7.783495,187.02,187.01,6.92208122]
[1761886740406,11.39160207,187.02,187.01,6.92208122]
[1761886740905,7.783495,187.02,187.01,6.92208122]
[1761886741290,11.39160207,187.02,187.01,6.92208122]
[1761886741603,7.783495,187.02,187.01,6.92208122]
[1761886741776,13.1305167,187.02,187.01,6.92208122]
[1761886744685,4.00862848,187.02,187.01,7.58208122]
[1761886753788,4.00862848,187.02,187.01,6.92208122]
[1761886754524,12.4505167,187.02,187.01,6.92208122]
[1761886754703,13.1305167,187.02,187.01,6.92208122]
[1761886755294,12.4505167,187.02,187.01,6.92208122]
[1761886756207,13.1305167,187.02,187.01,6.92208122]
[1761886756816,36.81738322,187.02,187.01,6.92208122]
[1761886757022,40.42682604,187.02,187.01,6.92208122]
[1761886757316,40.42682604,187.02,187.01,1e-08]
[1761886759199,16.73995952,187.02,187.01,1e-08]
[1761886759399,33.7225167,187.02,187.01,1e-08]
[1761886759700,37.33195952,187.02,187.01,1e-08]
[1761886760596,40.42682604,187.02,187.01,1e-08]
[1761886761098,37.33195952,187.02,187.01,1e-08]
[1761886763319,36.21802842,187.02,187.01,1e-08]
[1761886765624,44.1417701,187.02,187.01,1e-08]
[1761886770524,36.21802842,187.02,187.01,1e-08]
[1761886771024,44.1417701,187.02,187.01,1e-08]
[1761886771228,20.592,186.99,186.93,0.69]
[1761886771407,1.98093542,186.95,186.93,0.69]
[1761886771610,4.00862848,186.94,186.93,0.69]
[1761886772825,9.35793841,186.94,186.93,0.69]
[1761886779046,4.00862848,186.94,186.93,2.67093542]
[1761886779338,20.592,186.97,186.93,2.67093542]
[1761886779638,3.99684562,186.96,186.95,1.98093542]
[1761886780010,3.99684562,186.96,186.95,2.67093542]
[1761886780210,3.99684562,186.96,186.95,0.69]
[1761886780640,5.34787956,186.99,186.95,0.69]
[1761886780808,3.99668454,186.98,186.95,0.69]
[1761886781008,3.99668454,186.97,186.95,0.69]
[1761886781210,5.34787956,186.99,186.95,0.69]
[1761886781404,3.99678554,186.98,186.95,0.69]
[1761886781631,3.99678554,186.97,186.95,0.69]
[1761886781836,5.34787956,186.99,186.95,0.69]
[1761886782135,3.99697624,186.98,186.95,0.69]
[1761886782314,3.99697624,186.97,186.95,0.69]
[1761886782515,35.94201564,187.0,186.95,0.69]
[1761886782516,5.34792935,186.99,186.95,0.69]
[1761886782714,3.99697135,186.98,186.95,0.69]
[1761886782929,5.34792935,186.99,186.95,0.69]
[1761886783129,3.99693208,186.98,186.95,0.69]
[1761886783313,5.34792935,186.99,186.95,0.69]
[1761886783633,3.99722882,186.98,186.95,0.69]
[1761886783813,5.34792935,186.99,186.95,0.69]
[1761886784012,3.99722922,186.98,186.95,0.69]
[1761886784212,5.34792935,186.99,186.95,0.69]
[1761886784412,3.9973077,186.98,186.95,0.69]
[1761886784634,5.34792935,186.99,186.95,0.69]
[1761886784813,3.99754879,186.98,186.95,0.69]
[1761886785015,5.34792935,186.99,186.95,0.69]
[1761886785210,3.99754919,186.98,186.95,0.69]
[1761886785407,5.34822702,186.98,186.95,0.69]
[1761886786341,25.93969748,187.0,186.95,2.67093542]
[1761886786511,1.98093542,186.98,186.92,1.98093542]
[1761886786710,5.97871649,186.97,186.93,16.77104848]
[1761886787020,3.99778107,186.96,186.93,0.69]
[1761886787237,1.98093542,186.96,186.94,0.69]
[1761886787413,7.32982445,186.96,186.93,0.69]
[1761886787613,5.34888903,186.96,186.93,0.69]
[1761886788434,7.32982445,186.96,186.93,0.69]
[1761886788642,3.99805561,186.95,186.93,0.69]
[1761886788817,7.32982445,186.96,186.93,0.69]
[1761886789015,3.99813458,186.95,186.93,0.69]
[1761886789216,7.32982445,186.96,186.93,0.69]
[1761886789529,9.34732382,186.95,186.93,0.69]
[1761886789725,5.3491512,186.95,186.93,0.69]
[1761886790428,1.98093542,186.95,186.93,0.69]